fUSD/lending_fUSD_20240708
["ID","MTS","AMOUNT","RATE_DAILY","PERIOD"]
[331455106,1720424606453,-500.0,0.00034038,32]
[331455107,1720424606486,-764.6,0.00034038,33]
[331455108,1720424606522,-687.5,0.00034038,33]
[331455109,1720424606555,-547.57,0.00034038,51]
[331455110,1720424606588,-1101.05,0.00034038,48]
[331455111,1720424606619,-973.06,0.00034038,50]
[331455112,1720424606650,-500.0,0.00034038,33]
[331455113,1720424606680,-2456.11,0.00034038,42]
[331455114,1720424606711,-764.6,0.00034038,34]
[331455115,1720424606741,-687.5,0.00034038,34]
[331455116,1720424606773,-547.57,0.00034038,52]
[331455117,1720424606805,-164.33970827,0.00034038,36]
[331455118,1720424606843,-1101.05,0.00034038,49]
[331455119,1720424606877,-500.0,0.00034038,30]
[331455120,1720424606911,-973.06,0.00034038,51]
[331455121,1720424606943,-500.0,0.00034038,34]
[331455122,1720424606978,-2456.11,0.00034038,43]
[331455123,1720424607011,-764.6,0.00034038,35]
[331455124,1720424607045,-687.5,0.00034038,35]
[331455125,1720424607077,-547.59366004,0.00034038,53]
[331455126,1720424607111,-500.0,0.00034038,31]
[331455127,1720424607144,-1101.05,0.00034038,50]
[331455128,1720424607177,-973.06,0.00034038,52]
[331455129,1720424607213,-2456.11,0.00034038,44]
[331455130,1720424607244,-500.0,0.00034038,35]
[331455131,1720424607276,-764.6,0.00034038,36]
[331455132,1720424607308,-687.5,0.00034038,36]
[331455133,1720424607341,-500.0,0.00034038,30]
[331455134,1720424607373,-1101.05,0.00034038,51]
[331455135,1720424607406,-973.20729701,0.00034038,53]
[331455136,1720424607439,-500.0,0.00034038,30]
[331455137,1720424607473,-500.0,0.00034038,32]
[331455138,1720424607505,-500.0,0.00034038,36]
[331455139,1720424607538,-687.5,0.00034038,37]
[331455140,1720424607880,-500.0,0.00034038,31]
[331455141,1720424607912,-2456.11,0.00034038,45]
[331455142,1720424607946,-1101.05,0.00034038,52]
[331455143,1720424607979,-764.6,0.00034038,37]
[331455144,1720424608012,-500.0,0.00034038,33]
[331455145,1720424608043,-500.0,0.00034038,37]
[331455146,1720424608077,-500.0,0.00034038,32]
[331455147,1720424608108,-687.5,0.00034038,38]
[331455148,1720424608140,-1101.2693892,0.00034038,53]
[331455149,1720424608173,-764.6,0.00034038,38]
[331455150,1720424608205,-2456.11,0.00034038,46]
[331455151,1720424608238,-500.0,0.00034038,34]
[331455152,1720424608269,-500.0,0.00034038,38]
[331455153,1720424608301,-500.0,0.00034038,31]
[331455154,1720424608334,-500.0,0.00034038,33]
[331455155,1720424608367,-687.5,0.00034038,39]
[331455156,1720424608399,-764.6,0.00034038,39]
[331455157,1720424608431,-500.0,0.00034038,35]
[331455158,1720424608463,-646.59813662,0.00034038,39]
[331455159,1720424608496,-2456.11,0.00034038,47]
[331455160,1720424608529,-687.5,0.00034038,40]
[331455161,1720424608561,-212.57836781,0.00034038,34]
[331455162,1720424608592,-500.0,0.00034038,36]
[331455163,1720424608624,-500.0,0.00034038,30]
[331455164,1720424608656,-2456.11,0.00034038,48]
[331455165,1720424608688,-510.19850136,0.00034038,30]
[331455166,1720424608720,-500.0,0.00034038,32]
[331455167,1720424608752,-764.6,0.00034038,40]
[331455168,1720424608783,-687.5,0.00034038,41]
[331455169,1720424608814,-500.0,0.00034038,31]
[331455170,1720424608851,-500.0,0.00034038,37]
[331455171,1720424608884,-500.0,0.00034038,33]
[331455172,1720424608917,-764.6,0.00034038,41]
[331455173,1720424608950,-687.5,0.00034038,42]
[331455174,1720424608985,-500.0,0.00034038,32]
[331455175,1720424609018,-500.0,0.00034038,38]
[331455176,1720424609050,-2456.11,0.00034038,49]
[331455177,1720424609082,-500.0,0.00034038,34]
[331455178,1720424609115,-500.0,0.00034038,30]
[331455179,1720424609150,-764.6,0.00034038,42]
[331455180,1720424609183,-687.5,0.00034038,43]
[331455181,1720424609216,-500.0,0.00034038,33]
[331455182,1720424609250,-500.0,0.00034038,39]
[331455183,1720424609283,-2456.11,0.00034038,50]
[331455184,1720424609318,-500.0,0.00034038,35]
[331455185,1720424609355,-500.0,0.00034038,31]
[331455186,1720424609391,-687.5,0.00034038,44]
[331455187,1720424609424,-764.6,0.00034038,43]
[331455188,1720424609459,-500.0,0.00034038,34]
[331455189,1720424609492,-2456.11,0.00034038,51]
[331455190,1720424609526,-500.0,0.00034038,40]
[331455191,1720424609560,-500.0,0.00034038,36]
[331455192,1720424609595,-500.0,0.00034038,32]
[331455193,1720424609629,-687.5,0.00034038,45]
[331455194,1720424609662,-764.6,0.00034038,44]
[331455195,1720424609694,-500.0,0.00034038,35]
[331455196,1720424609728,-2456.11,0.00034038,52]
[331455197,1720424609761,-500.0,0.00034038,37]
[331455198,1720424609793,-500.0,0.00034038,33]
[331455199,1720424609827,-687.5,0.00034038,46]
[331455200,1720424609860,-500.0,0.00034038,41]
[331455201,1720424609893,-764.6,0.00034038,45]
[331455202,1720424609928,-500.0,0.00034038,36]
[331455203,1720424609960,-500.0,0.00034038,30]
[331455204,1720424609991,-2456.32788323,0.00034038,53]
[331455205,1720424610023,-500.0,0.00034038,38]
[331455206,1720424610054,-500.0,0.00034038,34]
[331455207,1720424610085,-500.0,0.00034038,42]
[331455208,1720424610117,-687.5,0.00034038,47]
[331455209,1720424610148,-764.6,0.00034038,46]
[331455210,1720424610182,-500.0,0.00034038,37]
[331455211,1720424610215,-500.0,0.00034038,31]
[331455212,1720424610322,-500.0,0.00034038,39]
[331455213,1720424610353,-500.0,0.00034038,35]
[331455214,1720424610384,-500.0,0.00034038,43]
[331455215,1720424610416,-687.5,0.00034038,48]
[331455216,1720424610447,-764.6,0.00034038,47]
[331455217,1720424610479,-500.0,0.00034038,38]
[331455218,1720424610510,-500.0,0.00034038,32]
[331455219,1720424610544,-500.0,0.00034038,36]
[331455220,1720424610576,-687.5,0.00034038,49]
[331455221,1720424610608,-764.6,0.00034038,48]
[331455222,1720424610641,-500.0,0.00034038,44]
[331455223,1720424610672,-500.0,0.00034038,40]
[331455224,1720424610705,-500.0,0.00034038,39]
[331455225,1720424610743,-500.0,0.00034038,33]
[331455226,1720424610777,-687.5,0.00034038,50]
[331455227,1720424610811,-764.6,0.00034038,49]
[331455228,1720424610846,-500.0,0.00034038,40]
[331455229,1720424610880,-500.0,0.00034038,41]
[331455230,1720424610913,-418.00597685,0.00034038,30]
[331455231,1720424610946,-500.0,0.00034038,34]
[331455232,1720424610983,-764.6,0.00034038,50]
[331455233,1720424611016,-687.5,0.00034038,51]
[331455234,1720424611050,-500.0,0.00034038,41]
[331455235,1720424611083,-500.0,0.00034038,42]
[331455236,1720424611116,-500.0,0.00034038,35]
[331455237,1720424611150,-764.6,0.00034038,51]
[331455238,1720424611183,-500.0,0.00034038,42]
[331455239,1720424611215,-687.5,0.00034038,52]
[331455240,1720424611248,-500.0,0.00034038,36]
[331455241,1720424611282,-500.0,0.00034038,43]
[331455242,1720424612499,-500.0,0.00034038,43]
[331455243,1720424612545,-764.6,0.00034038,52]
[331455244,1720424612580,-687.6,0.00034038,53]
[331455245,1720424612612,-500.0,0.00034038,37]
[331455246,1720424612644,-578.50297711,0.00034038,44]
[331455247,1720424612675,-543.95,0.00034038,30]
[331455248,1720424612707,-4120.93,0.00034038,30]
[331455249,1720424612738,-500.0,0.00034038,44]
[331455250,1720424612768,-764.79540626,0.00034038,53]
[331455251,1720424612800,-500.0,0.00034038,45]
[331455252,1720424612833,-543.95,0.00034038,31]
[331455253,1720424612864,-4120.93,0.00034038,31]
[331455254,1720424612897,-500.0,0.00034038,38]
[331455255,1720424612930,-543.95,0.00034038,32]
[331455256,1720424612963,-4120.93,0.00034038,32]
[331455257,1720424612995,-500.0,0.00034038,39]
[331455258,1720424613028,-543.95,0.00034038,33]
[331455259,1720424613061,-4120.93,0.00034038,33]
[331455260,1720424613093,-500.0,0.00034038,46]
[331455261,1720424613125,-500.0,0.00034038,30]
[331455262,1720424613159,-543.95,0.00034038,34]
[331455263,1720424613192,-4120.93,0.00034038,34]
[331455264,1720424613227,-500.0,0.00034038,31]
[331455265,1720424613262,-500.0,0.00034038,40]
[331455266,1720424613294,-500.0,0.00034038,47]
[331455267,1720424613326,-501.14500776,0.00034038,30]
[331455268,1720424613358,-543.95,0.00034038,35]
[331455269,1720424613390,-4120.93,0.00034038,35]
[331455270,1720424613423,-231.51574103,0.00034038,32]
[331455271,1720424613455,-500.0,0.00034038,48]
[331455272,1720424613493,-543.95,0.00034038,36]
[331455273,1720424613527,-356.79055133,0.00034038,41]
[331455274,1720424613561,-4120.93,0.00034038,36]
[331455275,1720424613596,-500.0,0.00034038,49]
[331455276,1720424613627,-543.95,0.00034038,37]
[331455277,1720424613659,-4120.93,0.00034038,37]
[331455278,1720424613691,-500.0,0.00034038,50]
[331455279,1720424613724,-543.95,0.00034038,38]
[331455280,1720424613756,-4120.93,0.00034038,38]
[331455281,1720424613787,-543.95,0.00034038,39]
[331455282,1720424613832,-2717.6,0.00034038,30]
[331455283,1720424613878,-375.01691991,0.00034038,51]
[331455284,1720424613915,-4120.93,0.00034038,39]
[331455285,1720424613951,-543.95,0.00034038,40]
[331455286,1720424613990,-2717.6,0.00034038,31]
[331455287,1720424614025,-4120.93,0.00034038,40]
[331455288,1720424614058,-543.95,0.00034038,41]
[331455289,1720424614093,-2717.6,0.00034038,32]
[331455290,1720424614127,-4120.93,0.00034038,41]
[331455291,1720424614160,-543.95,0.00034038,42]
[331455292,1720424614196,-2717.6,0.00034038,33]
[331455293,1720424614235,-543.95,0.00034038,43]
[331455294,1720424614269,-4120.93,0.00034038,42]
[331455295,1720424614304,-2717.6,0.00034038,34]
[331455296,1720424614337,-4120.93,0.00034038,43]
[331455297,1720424614372,-543.95,0.00034038,44]
[331455298,1720424614406,-2717.6,0.00034038,35]
[331455299,1720424614440,-1574.41,0.00034038,30]
[331455300,1720424614473,-500.0,0.00034038,30]
[331455301,1720424614506,-4120.93,0.00034038,44]
[331455302,1720424614545,-543.95,0.00034038,45]
[331455303,1720424614579,-1574.41,0.00034038,31]
[331455304,1720424614611,-500.0,0.00034038,31]
[331455305,1720424614644,-1657.86,0.00034038,30]
[331455306,1720424614678,-4120.93,0.00034038,45]
[331455307,1720424614719,-543.95,0.00034038,46]
[331455308,1720424614756,-2717.6,0.00034038,36]
[331455309,1720424614793,-500.0,0.00034038,32]
[331455310,1720424614831,-1574.41,0.00034038,32]
[331455311,1720424614867,-1657.86,0.00034038,31]
[331455312,1720424614903,-4120.93,0.00034038,46]
[331455313,1720424614941,-543.95,0.00034038,47]
[331455314,1720424614981,-2717.6,0.00034038,37]
[331455315,1720424615016,-500.0,0.00034038,33]
[331455316,1720424615296,-543.95,0.00034038,48]
[331455317,1720424615331,-501.77879731,0.00034038,30]
[331455318,1720424615366,-1118.67,0.00034038,30]
[331455319,1720424615400,-500.0,0.00034038,34]
[331455320,1720424615435,-1574.41,0.00034038,33]
[331455321,1720424615470,-500.0,0.00034038,30]
[331455322,1720424615506,-4120.93,0.00034038,47]
[331455323,1720424615545,-543.95,0.00034038,49]
[331455324,1720424615585,-1118.67,0.00034038,31]
[331455325,1720424615622,-2717.6,0.00034038,38]
[331455326,1720424615660,-1657.86,0.00034038,32]
[331455327,1720424615696,-500.0,0.00034038,35]
[331455328,1720424615736,-1574.41,0.00034038,34]
[331455329,1720424615770,-501.21181118,0.00034038,31]
[331455330,1720424615804,-4120.93,0.00034038,48]
[331455331,1720424615840,-543.95,0.00034038,50]
[331455332,1720424615875,-1118.67,0.00034038,32]
[331455333,1720424615911,-1657.86,0.00034038,33]
[331455334,1720424615945,-580.12,0.00034038,30]
[331455335,1720424615983,-500.0,0.00034038,36]
[331455336,1720424616019,-2717.6,0.00034038,39]
[331455337,1720424616053,-1574.41,0.00034038,35]
[331455338,1720424616089,-4120.93,0.00034038,49]
[331455339,1720424616126,-543.95,0.00034038,51]
[331455340,1720424616160,-1118.67,0.00034038,33]
[331455341,1720424616195,-1657.86,0.00034038,34]
[331455342,1720424616236,-580.12,0.00034038,31]
[331455343,1720424616274,-500.0,0.00034038,37]
[331455344,1720424616309,-1574.41,0.00034038,36]
[331455345,1720424616343,-2717.6,0.00034038,40]
[331455346,1720424616384,-543.95,0.00034038,52]
[331455347,1720424616423,-1118.67,0.00034038,34]
[331455348,1720424616461,-1657.86,0.00034038,35]
[331455349,1720424616495,-580.12,0.00034038,32]
[331455350,1720424616529,-4120.93,0.00034038,50]
[331455351,1720424616564,-500.0,0.00034038,38]
[331455352,1720424616599,-1574.41,0.00034038,37]
[331455353,1720424616634,-2717.6,0.00034038,41]
[331455354,1720424616668,-544.02302056,0.00034038,53]
[331455355,1720424616703,-1118.67,0.00034038,35]
[331455356,1720424616739,-1657.86,0.00034038,36]
[331455357,1720424616774,-4120.93,0.00034038,51]
[331455358,1720424616807,-580.12,0.00034038,33]
[331455359,1720424616842,-500.0,0.00034038,39]
[331455360,1720424616878,-1574.41,0.00034038,38]
[331455361,1720424616912,-4144.14,0.00034038,30]
[331455362,1720424616946,-2717.6,0.00034038,42]
[331455363,1720424616981,-1118.67,0.00034038,36]
[331455364,1720424617015,-1657.86,0.00034038,37]
[331455365,1720424617048,-580.12,0.00034038,34]
[331455366,1720424617082,-4120.93,0.00034038,52]
[331455367,1720424617117,-500.0,0.00034038,40]
[331455368,1720424617150,-4144.14,0.00034038,31]
[331455369,1720424617184,-2717.6,0.00034038,43]
[331455370,1720424617218,-1657.86,0.00034038,38]
[331455371,1720424617252,-1118.67,0.00034038,37]
[331455372,1720424617286,-1574.41,0.00034038,39]
[331455373,1720424617320,-500.0,0.00034038,41]
[331455374,1720424617353,-4144.14,0.00034038,32]
[331455375,1720424617385,-2717.6,0.00034038,44]
[331455376,1720424617417,-1118.67,0.00034038,38]
[331455377,1720424617451,-580.12,0.00034038,35]
[331455378,1720424617486,-1657.86,0.00034038,39]
[331455379,1720424617519,-500.0,0.00034038,42]
[331455380,1720424617552,-4144.14,0.00034038,33]
[331455381,1720424617585,-4120.93243598,0.00034038,53]
[331455382,1720424617618,-2717.6,0.00034038,45]
[331455383,1720424617651,-1118.67,0.00034038,39]
[331455384,1720424617683,-580.12,0.00034038,36]
[331455385,1720424617717,-1574.41,0.00034038,40]
[331455386,1720424617750,-4144.14,0.00034038,34]
[331455387,1720424617783,-1657.86,0.00034038,40]
[331455388,1720424617819,-500.0,0.00034038,43]
[331455389,1720424617856,-2717.6,0.00034038,46]
[331455390,1720424617890,-1118.67,0.00034038,40]
[331455391,1720424617927,-580.12,0.00034038,37]
[331455392,1720424617961,-1574.41,0.00034038,41]
[331455393,1720424617996,-1657.86,0.00034038,41]
[331455394,1720424618030,-2717.6,0.00034038,47]
[331455395,1720424618065,-1118.67,0.00034038,41]
[331455396,1720424618098,-580.12,0.00034038,38]
[331455397,1720424618132,-1574.41,0.00034038,42]
[331455398,1720424618166,-4144.14,0.00034038,35]
[331455399,1720424618200,-1657.86,0.00034038,42]
[331455400,1720424618236,-2717.6,0.00034038,48]
[331455401,1720424618272,-1118.67,0.00034038,42]
[331455402,1720424618304,-1574.41,0.00034038,43]
[331455403,1720424618337,-500.0,0.00034038,44]
[331455404,1720424618371,-4144.14,0.00034038,36]
[331455405,1720424618760,-580.12,0.00034038,39]
[331455406,1720424618796,-1657.86,0.00034038,43]
[331455407,1720424618830,-2717.6,0.00034038,49]
[331455408,1720424618867,-1574.41,0.00034038,44]
[331455409,1720424618902,-500.0,0.00034038,45]
[331455410,1720424618939,-4144.14,0.00034038,37]
[331455411,1720424618974,-1657.86,0.00034038,44]
[331455412,1720424619007,-2717.6,0.00034038,50]
[331455413,1720424619045,-1574.41,0.00034038,45]
[331455414,1720424619082,-1118.67,0.00034038,43]
[331455415,1720424619118,-616.73,0.00034038,46]
[331455416,1720424619152,-4144.14,0.00034038,38]
[331455417,1720424619188,-580.12,0.00034038,40]
[331455418,1720424619224,-2717.6,0.00034038,51]
[331455419,1720424619259,-1118.67,0.00034038,44]
[331455420,1720424619295,-1574.41,0.00034038,46]
[331455421,1720424619330,-4144.14,0.00034038,39]
[331455422,1720424619366,-580.12,0.00034038,41]
[331455423,1720424619401,-1657.86,0.00034038,45]
[331455424,1720424619436,-2717.6,0.00034038,52]
[331455425,1720424619474,-1118.67,0.00034038,45]
[331455426,1720424619513,-1574.41,0.00034038,47]
[331455427,1720424619549,-500.0,0.00034038,30]
[331455428,1720424619586,-4144.14,0.00034038,40]
[331455429,1720424619623,-580.12,0.00034038,42]
[331455430,1720424619660,-2717.64,0.00034038,53]
[331455431,1720424619697,-1657.86,0.00034038,46]
[331455432,1720424619734,-500.0,0.00034038,30]
[331455433,1720424619771,-500.0,0.00034038,31]
[331455434,1720424619807,-4144.14,0.00034038,41]
[331455435,1720424619844,-1574.41,0.00034038,48]
[331455436,1720424619881,-1657.86,0.00034038,47]
[331455437,1720424619918,-500.0,0.00034038,31]
[331455438,1720424619959,-190.07442917,0.00034038,32]
[331455439,1720424620003,-1118.67,0.00034038,46]
[331455440,1720424620041,-4144.14,0.00034038,42]
[331455441,1720424620078,-1574.41,0.00034038,49]
[331455442,1720424620115,-1657.86,0.00034038,48]
[331455443,1720424620152,-500.0,0.00034038,30]
[331455444,1720424620189,-1118.67,0.00034038,47]
[331455445,1720424620228,-4144.14,0.00034038,43]
[331455446,1720424620265,-1574.41,0.00034038,50]
[331455447,1720424620304,-500.0,0.00034038,32]
[331455448,1720424620340,-1657.86,0.00034038,49]
[331455449,1720424620378,-500.0,0.00034038,31]
[331455450,1720424620414,-1118.67,0.00034038,48]
[331455451,1720424620451,-500.0,0.00034038,30]
[331455452,1720424620487,-4144.14,0.00034038,44]
[331455453,1720424620524,-500.0,0.00034038,33]
[331455454,1720424620559,-1574.41,0.00034038,51]
[331455455,1720424620595,-1657.86,0.00034038,50]
[331455456,1720424620630,-500.0,0.00034038,32]
[331455457,1720424620665,-1118.67,0.00034038,49]
[331455458,1720424620701,-500.0,0.00034038,31]
[331455459,1720424620738,-1574.41,0.00034038,52]
[331455460,1720424620774,-500.0,0.00034038,34]
[331455461,1720424620810,-1657.86,0.00034038,51]
[331455462,1720424620846,-500.0,0.00034038,30]
[331455463,1720424620883,-500.0,0.00034038,33]
[331455464,1720424620919,-1118.67,0.00034038,50]
[331455465,1720424620955,-4144.14,0.00034038,45]
[331455466,1720424620992,-500.0,0.00034038,32]
[331455467,1720424621027,-1574.52757496,0.00034038,53]
[331455468,1720424621063,-500.0,0.00034038,35]
[331455469,1720424621098,-500.0,0.00034038,31]
[331455470,1720424621132,-1657.86,0.00034038,52]
[331455471,1720424621167,-200.63987656,0.00034038,34]
[331455472,1720424621203,-1118.67,0.00034038,51]
[331455473,1720424621240,-4144.14,0.00034038,46]
[331455474,1720424621276,-500.0,0.00034038,33]
[331455475,1720424621311,-500.0,0.00034038,36]
[331455476,1720424621346,-2651.02,0.00034038,30]
[331455477,1720424621460,-500.0,0.00034038,32]
[331455478,1720424621496,-1657.89268866,0.00034038,53]
[331455479,1720424621531,-1118.67,0.00034038,52]
[331455480,1720424621565,-4144.14,0.00034038,47]
[331455481,1720424621600,-500.0,0.00034038,34]
[331455482,1720424621635,-500.0,0.00034038,33]
[331455483,1720424621669,-500.0,0.00034038,37]
[331455484,1720424621704,-1118.7812095,0.00034038,53]
[331455485,1720424621741,-4144.14,0.00034038,48]
[331455486,1720424621775,-500.0,0.00034038,35]
[331455487,1720424621809,-2651.02,0.00034038,31]
[331455488,1720424621844,-4144.14,0.00034038,49]
[331455489,1720424621881,-2651.06,0.00034038,30]
[331455490,1720424621918,-500.0,0.00034038,36]
[331455491,1720424621951,-500.0,0.00034038,30]
[331455492,1720424621986,-500.0,0.00034038,34]
[331455493,1720424622021,-2651.02,0.00034038,32]
[331455494,1720424622056,-500.0,0.00034038,38]
[331455495,1720424622090,-4144.14,0.00034038,50]
[331455496,1720424622124,-2651.06,0.00034038,31]
[331455497,1720424622158,-1290.88,0.00034038,30]
[331455498,1720424622192,-500.0,0.00034038,31]
[331455499,1720424622225,-500.0,0.00034038,35]
[331455500,1720424622259,-2651.02,0.00034038,33]
[331455501,1720424622297,-4144.14,0.00034038,51]
[331455502,1720424622332,-332.75501004,0.00034038,37]
[331455503,1720424622366,-500.0,0.00034038,39]
[331455504,1720424622400,-500.0,0.00034038,36]
[331455505,1720424622435,-500.0,0.00034038,32]
[331455506,1720424622472,-2651.02,0.00034038,34]
[331455507,1720424622507,-1290.88,0.00034038,31]
[331455508,1720424622541,-4144.14,0.00034038,52]
[331455509,1720424622575,-2651.06,0.00034038,32]
[331455510,1720424622609,-526.6541094,0.00034038,40]
[331455511,1720424622643,-500.0,0.00034038,37]
[331455512,1720424622677,-500.0,0.00034038,33]
[331455513,1720424622711,-2651.02,0.00034038,35]
[331455514,1720424622750,-1290.88,0.00034038,32]
[331455515,1720424622785,-945.17,0.00034038,30]
[331455516,1720424622819,-500.0,0.00034038,38]
[331455517,1720424622856,-500.0,0.00034038,34]
[331455518,1720424622892,-1726.81,0.00034038,30]
[331455519,1720424622930,-2651.02,0.00034038,36]
[331455520,1720424622973,-1290.88,0.00034038,33]
[331455521,1720424623013,-945.17,0.00034038,31]
[331455522,1720424623053,-2651.06,0.00034038,33]
[331455523,1720424623089,-4144.35525707,0.00034038,53]
[331455524,1720424623123,-500.0,0.00034038,35]
[331455525,1720424623157,-511.37993666,0.00034038,39]
[331455526,1720424623191,-2651.02,0.00034038,37]
[331455527,1720424623225,-1726.81,0.00034038,31]
[331455528,1720424623259,-945.17,0.00034038,32]
[331455529,1720424623294,-1290.88,0.00034038,34]
[331455530,1720424623330,-2651.06,0.00034038,34]
[331455531,1720424623364,-500.0,0.00034038,36]
[331455532,1720424623400,-945.17,0.00034038,33]
[331455533,1720424623435,-1290.88,0.00034038,35]
[331455534,1720424623472,-1726.81,0.00034038,32]
[331455535,1720424623506,-2651.06,0.00034038,35]
[331455536,1720424623542,-500.0,0.00034038,37]
[331455537,1720424623576,-1290.88,0.00034038,36]
[331455538,1720424623614,-945.17,0.00034038,34]
[331455539,1720424623648,-2651.02,0.00034038,38]
[331455540,1720424623682,-1726.81,0.00034038,33]
[331455541,1720424623718,-2651.06,0.00034038,36]
[331455542,1720424623752,-614.0853264,0.00034038,38]
[331455543,1720424623785,-945.17,0.00034038,35]
[331455544,1720424623819,-1290.88,0.00034038,37]
[331455545,1720424623855,-1726.81,0.00034038,34]
[331455546,1720424623889,-2651.06,0.00034038,37]
[331455547,1720424623929,-2651.02,0.00034038,39]
[331455548,1720424623967,-945.17,0.00034038,36]
[331455549,1720424624004,-1290.88,0.00034038,38]
[331455550,1720424624040,-1726.81,0.00034038,35]
[331455551,1720424624078,-2651.06,0.00034038,38]
[331455552,1720424624113,-2651.02,0.00034038,40]
[331455553,1720424624147,-945.17,0.00034038,37]
[331455554,1720424624183,-1726.81,0.00034038,36]
[331455555,1720424624218,-2651.06,0.00034038,39]
[331455556,1720424624253,-2651.02,0.00034038,41]
[331455557,1720424624288,-1290.88,0.00034038,39]
[331455558,1720424624324,-945.17,0.00034038,38]
[331455559,1720424624358,-2651.06,0.00034038,40]
[331455560,1720424624393,-2651.02,0.00034038,42]
[331455561,1720424624429,-1726.81,0.00034038,37]
[331455562,1720424624465,-1290.88,0.00034038,40]
[331455563,1720424624500,-2651.06,0.00034038,41]
[331455564,1720424624535,-945.17,0.00034038,39]
[331455565,1720424624570,-500.0,0.00034038,30]
[331455566,1720424624605,-1726.81,0.00034038,38]
[331455567,1720424624640,-2651.02,0.00034038,43]
[331455568,1720424624675,-1290.88,0.00034038,41]
[331455569,1720424624709,-945.17,0.00034038,40]
[331455570,1720424624744,-2651.06,0.00034038,42]
[331455571,1720424624778,-1726.81,0.00034038,39]
[331455572,1720424624813,-2651.02,0.00034038,44]
[331455573,1720424624848,-500.0,0.00034038,31]
[331455574,1720424624882,-1290.88,0.00034038,42]
[331455575,1720424624919,-2651.06,0.00034038,43]
[331455576,1720424624955,-945.17,0.00034038,41]
[331455577,1720424624990,-500.0,0.00034038,32]
[331455578,1720424625028,-2651.02,0.00034038,45]
[331455579,1720424625065,-1726.81,0.00034038,40]
[331455580,1720424625101,-1290.88,0.00034038,43]
[331455581,1720424625139,-2651.06,0.00034038,44]
[331455582,1720424625305,-2651.02,0.00034038,46]
[331455583,1720424625343,-500.0,0.00034038,33]
[331455584,1720424625380,-1726.81,0.00034038,41]
[331455585,1720424625419,-945.17,0.00034038,42]
[331455586,1720424625456,-1290.88,0.00034038,44]
[331455587,1720424625493,-2651.06,0.00034038,45]
[331455588,1720424625539,-2651.02,0.00034038,47]
[331455589,1720424625575,-500.0,0.00034038,34]
[331455590,1720424625611,-945.17,0.00034038,43]
[331455591,1720424625646,-1726.81,0.00034038,42]
[331455592,1720424625681,-1290.88,0.00034038,45]
[331455593,1720424625717,-2651.02,0.00034038,48]
[331455594,1720424625752,-2651.06,0.00034038,46]
[331455595,1720424625788,-500.0,0.00034038,35]
[331455596,1720424625823,-1726.81,0.00034038,43]
[331455597,1720424625862,-945.17,0.00034038,44]
[331455598,1720424625897,-1290.88,0.00034038,46]
[331455599,1720424625935,-2651.06,0.00034038,47]
[331455600,1720424625973,-945.17,0.00034038,45]
[331455601,1720424626008,-2651.02,0.00034038,49]
[331455602,1720424626044,-1726.81,0.00034038,44]
[331455603,1720424626079,-1290.88,0.00034038,47]
[331455604,1720424626116,-945.17,0.00034038,46]
[331455605,1720424626151,-2651.06,0.00034038,48]